bitfinex-derivatives/quotes_ETHF0:USTF0_20250110
["timestamp","ask_amount","ask_price","bid_price","bid_amount"]
[1736518544840,1.4585,3264.2,3263.5,40.8]
[1736518545041,5.81076135,3264.2,3263.9,0.30639]
[1736518545235,5.81076135,3264.2,3263.8,0.3064]
[1736518545440,5.81076135,3264.2,3263.9,0.30639]
[1736518545940,5.81076135,3264.2,3263.5,40.8]
[1736518546146,5.28119953,3264.6,3264.5,0.30634]
[1736518546348,2.59554573,3264.8,3264.7,0.30632]
[1736518546543,7.16208124,3265.6,3265.5,0.30624]
[1736518546941,7.16208124,3265.6,3265.5,41.10624]
[1736518547841,0.30615,3266.5,3265.5,41.10624]
[1736518547842,3.2078,3266.4,3266.3,0.30617]
[1736518548137,3.2078,3267.0,3265.8,3.2078]
[1736518548340,2.9048,3267.4,3265.5,42.561]
[1736518548344,3.2078,3266.6,3265.5,42.561]
[1736518548542,3.51398,3266.2,3265.6,0.30623]
[1736518548741,0.30617,3266.3,3265.8,0.30621]
[1736518549051,1.4207,3266.5,3265.5,40.8]
[1736518549241,0.30619,3266.2,3265.5,40.8]
[1736518549440,0.30619,3266.1,3265.5,41.10624]
[1736518549641,0.30622,3265.8,3265.4,3.2078]
[1736518549843,3.2078,3266.2,3265.4,3.2078]
[1736518550244,3.2078,3266.2,3264.5,0.76585]
[1736518550245,3.2078,3265.8,3264.9,3.2078]
[1736518550550,3.2078,3265.8,3264.3,3.2078]
[1736518550551,3.2078,3265.0,3264.3,3.2078]
[1736518551048,4.89625,3265.5,3265.0,0.30629]
[1736518551240,0.30627,3265.3,3264.3,6.54830494]
[1736518551437,0.30627,3265.2,3264.7,0.30631]
[1736518551638,1.3822,3265.5,3264.7,3.2078]
[1736518552442,0.30627,3265.3,3264.8,0.30631]
[1736518552945,0.3063,3265.0,3264.3,3.2078]
[1736518553248,1.3822,3265.5,3264.9,3.2078]
[1736518553549,3.2078,3266.0,3265.7,0.30622]
[1736518553943,1.69718,3266.2,3265.8,0.30621]
[1736518553944,1.391,3266.2,3265.8,0.30621]
[1736518554149,1.69718,3266.2,3265.4,40.8]
[1736518554348,1.391,3266.2,3265.8,0.30621]
[1736518554643,3.2078,3267.0,3266.1,3.34050494]
[1736518554845,4.7129,3267.4,3267.0,0.3061]
[1736518555037,4.7129,3267.4,3266.6,3.34050494]
[1736518555238,1.4963,3268.0,3266.7,40.8]
[1736518555239,3.2078,3267.9,3266.7,40.8]
[1736518555437,0.30606,3267.5,3267.0,0.3061]
[1736518555648,0.30605,3267.6,3267.1,0.30609]
[1736518555946,3.2078,3267.9,3266.8,3.2078]
[1736518556245,3.2078,3267.0,3266.7,40.8]
[1736518556643,0.30615,3266.5,3266.3,3.2078]
[1736518556852,3.013,3266.9,3266.3,3.2078]
[1736518557652,0.30606,3267.5,3266.8,0.30612]
[1736518557945,0.30606,3267.5,3267.1,0.30609]
[1736518558144,0.30606,3267.5,3267.0,0.3061]
[1736518558341,1.504,3267.7,3266.7,3.2078]
[1736518558736,3.2078,3268.6,3267.1,6.54830494]
[1736518558941,0.30599,3268.2,3267.6,0.30604]
[1736518559139,0.30599,3268.2,3267.7,0.30604]
[1736518559348,0.30598,3268.3,3267.7,0.30604]
[1736518559544,3.2078,3268.6,3267.7,0.30604]
[1736518559740,3.2078,3268.6,3267.1,6.54830494]
[1736518559939,0.30599,3268.2,3267.7,0.30604]
[1736518560447,0.30598,3268.4,3267.9,0.30601]
[1736518560651,1.4274,3268.7,3267.7,3.2078]
[1736518560852,1.4274,3268.7,3268.3,0.30598]
[1736518561148,1.4274,3268.7,3267.9,40.8]
[1736518561450,3.2078,3269.0,3268.2,3.2078]
[1736518561846,3.2078,3269.0,3268.9,0.30592]
[1736518562246,3.2078,3269.8,3269.5,0.30586]
[1736518562558,3.2078,3269.8,3269.1,3.2078]
[1736518562559,0.30586,3269.7,3269.1,3.2078]
[1736518562753,0.30586,3269.7,3268.6,3.34050494]
[1736518562754,3.51369,3269.3,3269.2,40.8]
[1736518562955,0.30587,3269.5,3268.6,3.51375]
[1736518563152,3.2078,3269.3,3268.6,3.2078]
[1736518563355,3.2078,3269.3,3268.6,44.0078]
[1736518563949,3.2078,3269.3,3268.8,0.30593]
[1736518564456,1.4504,3269.6,3268.6,6.54830494]
[1736518564650,1.75626,3269.6,3269.0,0.30591]
[1736518564846,3.2078,3269.4,3268.6,3.2078]
[1736518565049,3.2078,3268.9,3268.2,3.2078]
[1736518565252,0.30598,3268.3,3268.2,3.2078]
[1736518565452,3.2078,3268.5,3267.6,0.30605]
[1736518565659,3.2078,3268.5,3267.4,3.2078]
[1736518565660,1.3772,3268.4,3267.4,3.2078]
[1736518565861,1.3772,3268.4,3267.6,3.34050494]
[1736518566155,1.3772,3268.4,3267.8,3.2078]
[1736518566358,1.68317,3268.4,3267.8,3.51382]
[1736518566553,0.30602,3268.0,3267.4,3.2078]
[1736518566857,1.3772,3268.4,3267.5,0.30605]
[1736518567052,1.3772,3268.4,3267.4,3.2078]
[1736518567450,1.3772,3268.4,3267.8,3.2078]
[1736518567653,5.35794,3269.3,3268.3,3.2078]
[1736518567654,4.5932,3269.3,3268.3,3.2078]
[1736518567854,4.5932,3269.3,3268.8,3.2078]
[1736518567855,3.2078,3269.3,3268.8,3.2078]
[1736518568059,3.2078,3269.3,3268.8,3.51373]
[1736518568255,3.2078,3269.3,3269.0,0.30591]
[1736518568456,3.2078,3269.3,3268.9,0.30592]
[1736518568758,3.2078,3269.9,3268.8,3.2078]
[1736518569358,0.30588,3269.4,3268.9,0.30592]
[1736518569553,3.2078,3269.9,3268.8,3.2078]
[1736518569857,1.4425,3269.3,3268.8,3.2078]
[1736518570158,1.4992,3269.8,3268.8,6.54830494]
[1736518570349,1.80504,3269.8,3268.8,6.54830494]
[1736518570656,1.4992,3269.8,3268.8,3.2078]
[1736518570861,1.4992,3269.8,3269.0,0.30591]
[1736518571059,1.4992,3269.8,3268.8,3.2078]
[1736518571060,3.2078,3269.4,3268.8,3.2078]
[1736518571253,0.30591,3269.1,3268.8,3.2078]
[1736518571449,0.3059,3269.2,3268.8,3.2078]
[1736518571653,1.3526,3269.1,3269.0,0.30592]
[1736518572261,0.30595,3268.7,3268.3,0.30598]
[1736518572463,0.30592,3269.0,3268.5,0.30596]
[1736518572761,1.4041,3269.7,3268.6,44.0078]
[1736518572954,0.30588,3269.5,3269.0,0.30591]
[1736518573154,3.2078,3269.2,3268.6,40.8]
[1736518573362,1.4041,3269.7,3268.6,44.0078]
[1736518573561,0.30586,3269.6,3269.2,0.30589]
[1736518573868,0.76453,3270.2,3268.6,44.0078]
[1736518573869,3.2078,3270.4,3269.0,3.2078]
[1736518574061,3.2078,3270.4,3269.1,0.76476]
[1736518574258,0.30581,3270.2,3269.4,3.2078]
[1736518574460,3.2078,3270.4,3269.4,3.2078]
[1736518574866,0.3058,3270.3,3269.9,0.30583]
[1736518575059,3.2078,3270.4,3269.4,3.2078]
[1736518575261,0.3058,3270.3,3269.9,0.30583]
[1736518575456,3.51359,3270.4,3270.0,0.30582]
[1736518575759,0.30581,3270.1,3269.8,0.30584]
[1736518575958,3.2078,3270.4,3269.8,0.30584]
[1736518575959,0.30581,3270.2,3269.8,0.30584]
[1736518576162,1.3536,3270.3,3269.9,40.8]
[1736518576562,1.3536,3270.3,3269.6,0.30586]
[1736518576767,0.30583,3270.0,3269.4,3.2078]
[1736518576957,1.3536,3270.3,3269.5,40.8]
[1736518577161,0.30581,3270.2,3269.5,40.8]
[1736518577360,0.30582,3270.1,3269.7,0.30584]
[1736518577556,0.30582,3270.1,3269.5,40.8]
[1736518577771,1.3536,3270.3,3269.5,40.8]
[1736518578064,1.3536,3270.3,3269.0,0.24284729]
[1736518578065,3.2078,3269.9,3269.0,3.2078]
[1736518578272,0.30585,3269.7,3269.0,3.2078]
[1736518578463,0.30585,3269.7,3269.1,40.8]
[1736518578671,0.30584,3269.8,3269.4,0.30587]
[1736518578962,0.30589,3269.4,3269.1,40.8]
[1736518579169,1.3536,3270.3,3269.3,3.34050494]
[1736518579568,1.3536,3270.3,3269.4,3.2078]
[1736518579768,1.3536,3270.3,3269.5,0.76468]
[1736518579964,3.2078,3270.1,3269.4,3.2078]
[1736518580170,3.2078,3270.1,3269.1,40.8]
[1736518580171,0.30583,3269.9,3269.5,0.30586]
[1736518580365,0.30582,3270.1,3269.7,0.30584]
[1736518580565,1.3536,3270.3,3269.3,3.2078]
[1736518580566,1.3536,3270.3,3269.4,0.7647]
[1736518580760,1.3536,3270.3,3270.1,0.30581]
[1736518580963,0.3058,3270.2,3269.8,0.30584]
[1736518581173,1.3536,3270.3,3269.8,0.30584]
[1736518581373,0.30582,3270.1,3269.3,6.54830494]
[1736518581569,3.2078,3270.1,3269.3,3.2078]
[1736518581864,3.2078,3271.0,3269.8,3.34050494]
[1736518582070,3.2078,3271.0,3269.9,1.1398]
[1736518582575,3.2078,3271.0,3270.1,0.30581]
[1736518582766,3.2078,3270.6,3269.7,3.2078]
[1736518583076,1.3554,3271.3,3269.3,3.2078]
[1736518583077,3.2078,3270.1,3269.3,3.2078]
[1736518583270,0.30584,3269.8,3269.5,0.30587]
[1736518583467,0.30585,3269.7,3269.3,3.51368]
[1736518583668,0.30587,3269.5,3269.2,0.30589]
[1736518583974,0.30587,3269.5,3269.1,41.1059]
[1736518584172,3.51367,3269.6,3269.2,0.30589]
[1736518584465,0.30587,3269.5,3269.1,40.8]
[1736518584667,0.30587,3269.5,3269.2,0.30589]
[1736518584868,3.97236,3270.0,3269.1,40.8]
[1736518584869,0.30586,3269.6,3269.1,40.8]
[1736518585066,0.30586,3269.6,3269.3,0.30589]
[1736518585262,3.2078,3270.0,3269.1,40.8]
[1736518585465,0.30584,3269.8,3269.4,0.30587]
[1736518585667,3.2078,3270.0,3269.1,40.8]
[1736518585869,1.3213,3270.4,3269.3,3.2078]
[1736518585870,0.3058,3270.2,3269.3,3.2078]
[1736518586074,0.30582,3270.1,3269.7,0.30585]
[1736518586374,0.30581,3270.2,3269.8,0.30584]
[1736518586565,1.3213,3270.4,3269.4,0.7647]
[1736518586768,1.3213,3270.4,3270.2,0.3058]
[1736518586972,1.3213,3270.4,3270.3,0.30579]
[1736518587169,3.2078,3270.5,3270.4,0.30578]
[1736518587461,0.76424,3271.4,3270.3,40.8]
[1736518587462,4.5748,3271.0,3270.3,40.8]
[1736518587663,3.2078,3270.6,3269.7,3.2078]
[1736518587866,0.3058,3270.3,3269.9,0.30583]
[1736518588068,3.2078,3270.2,3269.7,3.2078]
[1736518588262,1.367,3271.0,3269.7,3.2078]
[1736518588263,4.5748,3271.0,3270.0,40.8]
[1736518588463,0.30576,3270.7,3270.3,0.30578]
[1736518588677,0.30576,3270.7,3270.4,0.30578]
[1736518588879,0.30577,3270.6,3270.2,0.3058]
[1736518589073,4.5748,3271.0,3270.0,40.8]
[1736518589274,0.30578,3270.4,3270.1,0.30581]
[1736518589570,3.2078,3270.6,3270.0,40.8]
[1736518589775,1.367,3271.0,3270.0,40.8]
[1736518589776,3.2078,3270.2,3270.0,40.8]
[1736518589979,4.5748,3271.0,3269.7,3.2078]
[1736518590279,4.5748,3271.0,3270.1,3.2078]
[1736518590471,4.5748,3271.0,3270.5,0.30577]
[1736518590472,0.30575,3270.9,3270.5,0.30577]
[1736518590670,0.30574,3270.9,3270.6,0.30576]
[1736518590871,4.5748,3271.0,3270.1,3.2078]
[1736518591173,4.5748,3271.0,3270.2,0.76449]
[1736518591373,4.88053,3271.0,3270.7,0.30576]
[1736518591979,4.5748,3271.0,3270.4,0.76447]
[1736518592176,4.5748,3271.0,3270.5,3.2078]
[1736518592481,4.5748,3271.0,3270.9,0.30574]
[1736518592675,4.5748,3271.0,3270.8,0.30574]
[1736518593084,4.5748,3271.0,3270.9,0.30574]
[1736518593085,3.2078,3271.0,3270.9,0.30574]
[1736518593278,2.87499592,3271.1,3270.9,0.30574]
[1736518593578,2.87499592,3271.1,3270.5,3.2078]
[1736518593779,2.87499592,3271.1,3270.5,3.51357]
[1736518593973,6.08279592,3271.1,3270.5,0.30577]
[1736518594179,2.87499592,3271.1,3270.1,3.2078]
[1736518594379,0.76433,3271.0,3270.1,3.2078]
[1736518594570,0.30576,3270.7,3270.1,3.2078]
[1736518594774,3.2078,3271.0,3270.1,3.2078]
[1736518594975,0.30577,3270.6,3270.3,0.30579]
[1736518595275,2.87499592,3271.1,3270.2,0.76451]
[1736518595480,0.30573,3271.0,3270.7,0.30575]
[1736518595679,2.87499592,3271.1,3270.5,3.2078]
[1736518595881,2.87499592,3271.1,3271.0,0.30573]
[1736518596579,2.87499592,3271.1,3271.0,41.10573]
[1736518596982,2.87499592,3271.1,3271.0,46.10573]
[1736518597476,2.60792094,3271.1,3271.0,46.10573]
[1736518597877,2.00195041,3271.1,3271.0,46.10573]
[1736518598381,0.20879199,3271.1,3271.0,46.10573]
[1736518598682,1.74388,3272.6,3272.2,0.30561]
[1736518598880,0.30559,3272.5,3272.1,0.30562]
[1736518599088,3.2078,3272.9,3271.9,3.2078]
[1736518599385,3.2078,3272.5,3271.5,3.2078]
[1736518599878,0.30567,3271.7,3271.5,3.2078]
[1736518600083,0.30567,3271.7,3271.1,3.2078]
[1736518600282,3.2078,3272.0,3271.1,3.2078]
[1736518600283,4.1169,3271.9,3271.1,3.2078]
[1736518600481,0.76414,3271.8,3271.1,3.2078]
[1736518600682,0.30569,3271.4,3271.1,3.2078]
[1736518600884,0.30571,3271.2,3271.1,3.2078]
[1736518601078,0.3057,3271.4,3271.1,3.2078]
[1736518601280,3.2078,3271.6,3271.1,3.2078]
[1736518601481,3.51352,3271.2,3270.5,40.8]
[1736518601683,0.30569,3271.4,3271.1,0.30572]
[1736518601974,0.30569,3271.4,3270.4,3.2078]
[1736518601975,0.30576,3270.7,3270.4,3.2078]
[1736518602173,3.2078,3270.6,3270.0,3.2078]
[1736518602388,0.30583,3269.9,3269.8,40.8]
[1736518602588,0.30584,3269.8,3269.7,4.76174453]
[1736518602789,3.2078,3269.8,3269.7,4.76174453]
[1736518603085,2.15685,3270.5,3269.6,40.8]
[1736518603086,1.3924,3270.5,3269.6,40.8]
[1736518603277,3.2078,3269.9,3269.6,40.8]
[1736518603485,3.97227,3270.4,3269.6,40.8]
[1736518603787,3.2078,3270.0,3269.6,40.8]
[1736518603984,4.6002,3270.5,3269.6,40.8]
[1736518604186,0.30583,3269.9,3269.6,0.30585]
[1736518604383,0.30583,3269.9,3269.1,3.2078]
[1736518604384,4.6002,3270.5,3269.2,3.34050494]
[1736518604585,4.6002,3270.5,3269.6,3.2078]
[1736518605091,1.3924,3270.5,3270.3,0.30579]
[1736518605389,1.3924,3270.5,3269.7,3.34050494]
[1736518605596,0.30579,3270.3,3269.7,3.34050494]
[1736518605784,0.30582,3270.0,3269.6,3.51365]
[1736518605990,1.3924,3270.5,3269.6,3.2078]
[1736518606292,0.3058,3270.2,3269.8,0.30583]
[1736518606683,0.30583,3270.0,3269.6,3.51365]
[1736518606885,0.30584,3269.8,3269.6,3.2078]
[1736518607084,0.30585,3269.7,3269.3,40.8]
[1736518607289,0.30585,3269.7,3269.3,41.10588]
[1736518607496,0.30588,3269.4,3269.3,40.8]
[1736518607788,1.3117,3269.6,3269.3,40.8]
[1736518608294,1.3117,3269.6,3269.4,0.30587]
[1736518608495,1.3117,3269.6,3269.5,0.30587]
[1736518608795,0.30583,3270.0,3269.5,0.30587]
[1736518608998,1.61752,3270.1,3269.3,40.8]
[1736518609297,1.3117,3270.1,3269.9,0.30583]
[1736518609786,1.3117,3270.1,3269.4,3.2078]
[1736518609986,1.3117,3270.1,3269.8,0.30583]
[1736518610388,1.3117,3270.1,3269.4,3.2078]
[1736518610587,1.3117,3270.1,3269.9,0.30583]
[1736518610891,1.3117,3270.1,3269.4,3.2078]
[1736518611189,4.6002,3270.5,3270.3,0.30579]
[1736518611405,3.2078,3271.1,3269.9,3.2078]
[1736518611694,1.3181,3271.3,3270.8,40.8]
[1736518611989,1.3181,3271.3,3270.9,0.30573]
[1736518611990,1.6238,3271.3,3270.9,0.30573]
[1736518612187,1.3181,3271.3,3270.8,40.8]
[1736518612494,1.3181,3271.3,3271.2,0.30571]
[1736518613292,3.2078,3272.4,3271.2,0.76428]
[1736518613496,1.3602,3272.3,3271.2,0.76428]
[1736518613794,0.30565,3271.9,3271.5,0.30567]
[1736518614096,0.30565,3271.9,3271.1,3.45645762]
[1736518614097,3.51344,3272.0,3271.6,0.30567]
[1736518614590,1.3602,3272.3,3271.1,3.45645762]
[1736518614891,3.2078,3272.8,3271.9,3.2078]
[1736518615393,0.30559,3272.6,3271.9,3.2078]
[1736518615594,3.2078,3272.8,3271.9,3.2078]
[1736518615791,3.2078,3272.8,3272.1,0.30562]
[1736518616094,0.30558,3272.6,3272.1,0.30562]
[1736518616292,0.30558,3272.6,3271.9,3.2078]
[1736518616501,3.51337,3272.8,3271.9,3.2078]
[1736518616797,0.3056,3272.4,3272.0,0.30563]
[1736518617187,3.2078,3272.3,3271.7,1.748]
[1736518617386,1.2692,3272.2,3271.7,0.30566]
[1736518617589,1.2692,3272.2,3271.5,3.2078]
[1736518617786,0.30567,3271.6,3271.5,3.2078]
[1736518618195,3.2078,3271.9,3271.0,0.30572]
[1736518618392,0.30569,3271.5,3271.1,0.30572]
[1736518618689,0.76414,3271.8,3270.6,0.30576]
[1736518618891,1.3563,3272.1,3270.5,3.2078]
[1736518618892,4.5008,3271.4,3270.5,3.2078]
[1736518619394,4.5008,3271.4,3270.5,0.30577]
[1736518619395,0.30575,3270.8,3270.5,0.30577]
[1736518619593,4.5008,3271.4,3270.2,40.8]
[1736518619892,3.2078,3271.0,3270.2,40.8]
[1736518620093,0.30576,3270.7,3270.4,0.30578]
[1736518620498,2.6486,3270.9,3270.5,0.30577]
[1736518620789,2.6486,3270.9,3270.3,0.30579]
[1736518620985,0.30576,3270.7,3270.3,0.30579]
[1736518621184,2.6486,3270.9,3270.2,40.8]
[1736518621383,2.6486,3270.9,3270.2,3.2078]
[1736518621589,2.6486,3270.9,3270.8,0.30575]
[1736518621791,1.293,3271.4,3270.8,40.8]
[1736518622194,0.30571,3271.2,3270.8,40.8]
[1736518622395,1.293,3271.4,3270.8,40.8]
[1736518622790,0.30574,3271.0,3270.8,40.8]
[1736518623197,1.59869,3271.4,3271.0,0.30572]
[1736518623399,1.293,3271.4,3271.2,0.30571]
[1736518623592,2.5256,3271.7,3271.0,3.2078]
[1736518623999,1.3781,3272.1,3272.0,0.30563]
[1736518624197,1.68373,3272.1,3271.7,0.30566]
[1736518624389,1.2748,3272.6,3271.6,3.2078]
[1736518624594,1.2748,3272.6,3271.8,40.8]
[1736518624795,1.2748,3272.6,3272.1,0.30562]
[1736518624996,3.2078,3272.5,3271.8,40.8]
[1736518625196,3.2078,3272.1,3271.1,0.30571]
[1736518625397,0.76403,3272.3,3270.8,1.07012]
[1736518625398,3.51347,3271.7,3270.8,1.07012]
[1736518625594,3.2078,3271.7,3271.6,0.30567]
[1736518625900,3.2078,3271.7,3271.1,40.8]
[1736518626099,0.30568,3271.6,3271.2,0.3057]
[1736518626303,3.2078,3271.7,3271.1,40.8]
[1736518626510,0.3057,3271.3,3271.1,40.8]
[1736518626695,2.7332,3271.6,3270.6,3.2078]
[1736518627000,2.7332,3271.6,3270.7,3.34050494]
[1736518627306,1.3586,3271.6,3271.0,3.2078]
[1736518627500,1.66428,3271.6,3271.3,0.3057]
[1736518627699,1.3586,3271.6,3271.0,3.2078]
[1736518628001,3.2078,3271.7,3271.6,0.30567]
[1736518628395,3.2078,3271.7,3271.5,0.30568]
[1736518628598,3.2078,3271.7,3271.0,3.2078]
[1736518628599,3.2078,3271.7,3271.6,0.30567]
[1736518629300,1.2715,3272.3,3271.1,0.7643]
[1736518629496,0.30564,3272.0,3271.6,41.10566]
[1736518629698,1.3732,3272.2,3271.6,40.8]
[1736518629898,0.30565,3271.9,3271.6,41.10567]
[1736518630099,1.3732,3272.2,3271.6,40.8]
[1736518630308,0.30564,3271.9,3271.6,40.8]
[1736518630701,1.3732,3272.2,3271.6,40.8]
[1736518631002,3.2078,3272.0,3271.0,3.2078]
[1736518631194,0.76414,3271.8,3271.0,3.2078]
[1736518631394,0.30569,3271.5,3271.1,0.30571]
[1736518631807,0.76412,3271.9,3271.0,44.31352]
[1736518632105,0.30571,3271.3,3271.0,44.31353]
[1736518632300,0.3057,3271.4,3271.1,0.30572]
[1736518632509,0.76414,3271.8,3271.0,44.0078]
[1736518632714,1.3732,3272.2,3270.5,3.51357]
[1736518632715,0.30574,3270.9,3270.5,3.51357]
[1736518633004,0.30577,3270.6,3270.3,0.30579]
[1736518633201,3.9721,3271.2,3270.0,3.2078]
[1736518633202,3.8702,3271.1,3270.4,40.8]
[1736518633398,0.30578,3270.5,3270.4,40.8]
[1736518634404,3.2078,3270.9,3269.6,4.21850906]
[1736518634608,0.30579,3270.3,3270.1,0.30581]
[1736518634805,0.30579,3270.4,3270.1,0.30581]
[1736518635102,0.30579,3270.3,3270.2,40.8]
[1736518635318,0.30579,3270.4,3270.2,40.8]
[1736518635805,3.2078,3270.9,3270.2,40.8]
[1736518636207,0.30579,3270.4,3270.2,40.8]
[1736518636410,3.2078,3270.3,3269.2,3.2078]
[1736518636609,2.6756,3270.2,3269.2,3.2078]
[1736518636812,1.3536,3270.1,3269.2,3.51369]
[1736518637013,0.30588,3269.4,3269.2,3.2078]
[1736518637212,1.3536,3270.1,3269.2,3.2078]
[1736518637213,0.30586,3269.6,3269.2,3.51369]
[1736518637414,1.3536,3270.1,3269.2,3.2078]
[1736518637714,0.30586,3269.6,3269.2,3.51369]
[1736518638310,0.30588,3269.4,3269.2,3.2078]
[1736518638608,0.76456,3270.0,3269.2,3.2078]
[1736518638807,3.2078,3269.9,3268.7,3.2078]
[1736518639006,0.30592,3269.0,3268.7,3.2078]
[1736518639316,0.7647,3269.4,3268.7,3.2078]
[1736518639501,3.2078,3269.5,3268.8,40.8]
[1736518639706,1.2658,3270.0,3269.1,3.2078]
[1736518639901,0.30585,3269.8,3269.1,3.2078]
[1736518640104,1.2658,3270.0,3269.1,3.2078]
[1736518640309,0.30584,3269.9,3269.4,0.30587]
[1736518640511,1.2658,3270.0,3269.1,3.2078]
[1736518640711,3.2078,3269.7,3269.1,3.2078]
[1736518641011,0.3059,3269.2,3269.1,3.2078]
[1736518641909,0.30592,3268.9,3268.8,40.8]
[1736518642106,3.2078,3269.2,3268.0,3.2078]
[1736518642107,1.2501,3269.1,3268.0,3.2078]
[1736518642414,3.8292,3269.1,3268.0,3.2078]
[1736518642616,4.13511,3269.1,3268.5,0.30596]
[1736518642912,3.2078,3269.6,3268.8,3.2078]
[1736518643109,3.2078,3269.6,3269.0,0.30591]
[1736518643302,3.2078,3269.6,3268.7,0.30594]
[1736518643505,3.2078,3269.6,3268.4,3.2078]
[1736518643912,3.2078,3269.0,3268.4,3.2078]
[1736518644116,1.3047,3268.9,3268.0,3.2078]
[1736518644308,1.3047,3268.9,3268.3,0.30598]
[1736518644504,0.30594,3268.8,3268.0,3.2078]
[1736518644712,1.3047,3268.9,3268.0,3.45416176]
[1736518645718,1.3047,3268.9,3268.0,3.2078]
[1736518646013,3.2078,3268.8,3268.0,3.2078]
[1736518646218,0.30598,3268.4,3268.0,3.51381]
[1736518646407,0.30594,3268.7,3268.0,3.2078]
[1736518646607,3.2078,3268.8,3268.0,3.2078]
[1736518647013,0.30597,3268.5,3268.1,41.106]
[1736518647215,0.30595,3268.7,3268.3,0.30597]
[1736518647614,0.30596,3268.5,3268.1,41.106]
[1736518647813,1.3047,3268.9,3268.1,40.8]
[1736518648018,3.2078,3268.8,3268.1,40.8]
[1736518648220,0.30598,3268.4,3268.1,40.8]
[1736518648416,0.30599,3268.3,3268.1,40.8]
[1736518648918,0.30598,3268.3,3268.1,40.8]
[1736518649221,3.2078,3268.8,3267.5,0.76512]
[1736518649222,0.30602,3267.9,3267.5,0.30605]
[1736518649417,0.30602,3267.9,3267.3,3.2078]
[1736518649418,3.2078,3267.9,3267.3,3.2078]
[1736518649617,0.30605,3267.6,3267.3,3.2078]
[1736518649818,0.30605,3267.6,3267.4,40.8]
[1736518650022,3.2078,3267.9,3267.4,40.8]
[1736518650216,1.3008,3268.0,3267.4,40.8]
[1736518650422,0.30597,3268.5,3268.1,0.30599]
[1736518650625,3.9948,3268.9,3268.6,0.30594]
[1736518650824,1.3008,3268.9,3268.8,0.30593]
[1736518651123,3.2078,3269.1,3268.5,3.2078]
[1736518651423,0.30594,3268.8,3268.0,3.2078]
[1736518651625,0.76474,3269.3,3268.0,3.2078]
[1736518651920,0.30594,3268.8,3268.0,3.2078]
[1736518652126,3.97255,3269.2,3268.0,3.2078]
[1736518652325,0.76486,3268.7,3267.3,3.2078]
[1736518652529,2.7095,3268.6,3267.3,3.2078]
[1736518652725,0.30601,3268.0,3267.7,0.30603]
[1736518653025,0.306,3268.1,3267.8,0.30602]
[1736518653229,3.2078,3268.4,3267.4,40.8]
[1736518653424,3.2078,3268.0,3267.4,40.8]
[1736518653726,3.2078,3268.4,3267.4,40.8]
[1736518654024,0.30599,3268.3,3268.0,0.306]
[1736518654429,3.2078,3268.4,3267.7,3.2078]
[1736518654824,0.30598,3268.3,3267.7,3.2078]
[1736518655018,3.2078,3268.4,3267.8,0.76508]
[1736518655225,0.30594,3268.8,3268.5,0.30596]
[1736518655516,1.3448,3269.1,3268.5,3.2078]
[1736518655722,0.3059,3269.2,3268.9,0.30592]
[1736518655919,1.3129,3269.5,3269.4,0.30588]
[1736518656121,3.51366,3269.6,3269.3,0.30588]
[1736518656321,2.6447,3269.8,3268.9,3.2078]
[1736518656530,2.6447,3269.8,3269.1,0.76477]
[1736518656719,2.95054,3269.8,3269.5,0.30586]
[1736518656935,3.2078,3270.4,3269.3,3.2078]
[1736518657122,0.30583,3269.9,3269.6,0.30586]
[1736518657318,1.3448,3270.3,3269.3,3.2078]
[1736518657519,3.2078,3270.0,3269.3,3.2078]
[1736518658124,0.30588,3269.4,3269.3,3.2078]
[1736518660136,0.30588,3269.4,3268.6,41.56489]
[1736518660137,0.30592,3269.0,3268.9,3.2078]
[1736518661725,1.2627,3269.3,3268.4,3.2078]
[1736518661927,0.30593,3268.9,3268.4,3.2078]
[1736518662127,0.30593,3268.9,3268.6,0.30594]
[1736518662329,3.2078,3269.1,3268.4,3.2078]
[1736518662526,1.2627,3269.3,3268.4,3.2078]
[1736518662723,0.30596,3268.6,3268.3,0.30597]
[1736518662930,3.2078,3269.2,3268.1,40.8]
[1736518663136,3.2078,3269.2,3267.2,0.7652]
[1736518663137,0.76494,3268.4,3267.2,3.2078]
[1736518663327,0.30601,3268.1,3267.2,3.2078]
[1736518663529,2.4072,3268.3,3267.6,3.2078]
[1736518663730,1.2861,3268.5,3268.3,0.30598]
[1736518664030,0.30593,3268.9,3268.4,3.2078]
[1736518664229,0.30592,3268.9,3268.6,0.30595]
[1736518664428,0.30592,3268.9,3268.4,3.2078]
[1736518664429,0.30592,3268.9,3268.5,0.30596]
[1736518664640,2.4078,3269.0,3268.4,3.2078]
[1736518665135,3.51367,3269.5,3269.1,0.30591]
[1736518665437,3.2078,3269.9,3269.3,0.30588]
[1736518665630,0.30586,3269.6,3269.3,0.30588]
[1736518666130,3.2078,3269.9,3268.8,3.2078]
[1736518666538,1.1995,3270.0,3269.8,0.30584]
[1736518666738,1.1995,3270.0,3269.9,40.8]
[1736518666933,1.50532,3270.0,3269.9,40.8]
[1736518667134,1.1995,3270.0,3269.9,40.8]
[1736518667332,1.50532,3270.0,3269.9,40.8]
[1736518667535,1.1995,3270.0,3269.6,0.30585]
[1736518667840,1.1995,3270.0,3269.2,3.2078]
[1736518668134,0.30589,3269.3,3269.2,3.2078]